bitfinex/quotes_ETHUSD_20260217
["timestamp","ask_amount","ask_price","bid_price","bid_amount"]
[1771341584233,1.33462132,1967.7,1967.0,1.27097102]
[1771341584445,0.0640822,1967.7,1967.0,1.27097102]
[1771341585106,0.0640822,1967.7,1967.1,0.597]
[1771341586310,0.0640822,1967.7,1967.2,1.2708418]
[1771341586526,0.0011,1967.9,1967.3,0.49304925]
[1771341586828,1.27149229,1967.9,1967.2,1.2708418]
[1771341587028,0.0011,1967.9,1967.2,1.8678418]
[1771341587636,0.0011,1967.9,1967.3,0.597]
[1771341588408,0.0011,1967.9,1967.4,1.27071261]
[1771341588613,0.0011,1967.9,1967.4,1.86871261]
[1771341588911,1.26993802,1968.6,1967.5,0.49304925]
[1771341589330,3.182165,1968.8,1967.6,7.21418476]
[1771341589510,1.70274686,1968.9,1967.7,0.598]
[1771341589705,2.122355,1968.8,1967.6,0.49304925]
[1771341590011,1.70274686,1968.9,1967.4,1.86871261]
[1771341590012,15.835537,1968.6,1967.4,1.86871261]
[1771341590220,15.835537,1968.6,1967.2,0.49304925]
[1771341590221,14.291179,1968.6,1967.2,1.09004925]
[1771341590423,11.870739,1968.4,1967.3,1.27072899]
[1771341590733,2.137711,1968.3,1967.3,1.27072899]
[1771341590937,1.27000254,1968.5,1967.1,5.57651943]
[1771341591104,1.27000254,1968.5,1967.3,0.49304925]
[1771341591507,1.27000254,1968.5,1967.3,0.597]
[1771341591508,8.41184,1968.4,1967.3,0.597]
[1771341591836,5.227,1968.4,1967.1,5.08347018]
[1771341592002,1.27000254,1968.5,1967.3,0.46944044]
[1771341592201,1.27000254,1968.5,1967.4,1.512]
[1771341592438,1.26987352,1968.7,1967.5,1.27064803]
[1771341592638,1.27092892,1968.8,1967.5,1.74008847]
[1771341593018,1.27092892,1968.8,1967.6,0.596]
[1771341593218,1.27092892,1968.8,1967.5,1.74008847]
[1771341593754,1.27092892,1968.8,1967.6,0.596]
[1771341594050,4.36619,1968.6,1967.5,1.86664803]
[1771341594248,4.36619,1968.6,1967.5,1.27064803]
[1771341594452,1.27000254,1968.5,1967.5,1.27064803]
[1771341595451,1.27000254,1968.5,1967.5,1.86664803]
[1771341595645,1.27000254,1968.5,1967.5,1.27064803]
[1771341595946,1.27000254,1968.5,1967.5,1.86764803]
[1771341596152,1.27000254,1968.5,1967.5,1.27064803]
[1771341596655,5.08001016,1968.6,1967.5,1.27064803]
[1771341597175,17.260626,1968.5,1967.5,1.27064803]
[1771341597324,11.093404,1968.5,1967.5,1.27064803]
[1771341597530,5.08001016,1968.6,1967.5,1.27064803]
[1771341597751,0.437,1968.5,1967.5,1.27064803]
[1771341597929,6.268654,1968.4,1967.5,1.27064803]
[1771341598236,4.264762,1968.4,1967.4,1.27067145]
[1771341598440,0.437,1968.5,1967.4,1.27067145]
[1771341598657,1.70700384,1968.5,1967.5,0.46944044]
[1771341600043,1.70700384,1968.5,1967.4,1.27067145]
[1771341600365,0.0011,1968.8,1967.9,0.46944044]
[1771341600563,0.0011,1968.8,1968.2,1.27019611]
[1771341600738,0.45858001,1969.9,1968.3,0.598]
[1771341600942,2.672597,1969.7,1968.4,0.46944044]
[1771341601264,2.672597,1969.7,1968.2,1.27019611]
[1771341601564,20.550099,1969.4,1968.1,1.27021545]
[1771341601754,0.439,1969.3,1968.2,0.46944044]
[1771341601951,2.16844,1969.2,1967.9,5.0814856]
[1771341602150,2.16844,1969.2,1967.9,5.6814856]
[1771341602351,30.0,1969.7,1968.0,0.46944044]
[1771341602557,0.44,1969.6,1968.1,6.83172636]
[1771341602755,2.18523948,1969.7,1968.2,0.46944044]
[1771341602958,5.40327591,1970.4,1968.6,0.46944044]
[1771341603159,0.916,1970.2,1968.6,0.46944044]
[1771341603752,2.437409,1970.1,1968.6,0.46944044]
[1771341604147,0.45858001,1969.8,1968.3,0.601]
[1771341604374,6.194392,1969.6,1968.2,0.46944044]
[1771341604576,6.194392,1969.6,1967.8,5.08104262]
[1771341604577,0.45858001,1969.2,1967.8,1.27040608]
[1771341604776,22.103708,1969.0,1967.5,1.27064803]
[1771341604976,20.510105,1968.9,1967.5,1.27064803]
[1771341605142,15.034875,1968.7,1967.5,1.27064803]
[1771341605339,1.358,1968.6,1967.5,1.27064803]
[1771341605545,0.442,1968.5,1967.5,1.27064803]
[1771341605742,0.442,1968.5,1967.3,5.08310151]
[1771341605974,0.442,1968.5,1967.7,0.001]
[1771341606170,18.074092,1968.4,1966.9,1.27103563]
[1771341606372,18.074092,1968.4,1966.9,1.87103563]
[1771341606669,0.90058001,1968.5,1967.5,0.001]
[1771341606670,1.27019611,1968.2,1967.5,0.001]
[1771341607041,0.442,1968.1,1967.5,0.001]
[1771341607442,0.442,1968.1,1966.9,1.83703331]
[1771341607647,0.442,1968.3,1967.0,0.46944044]
[1771341607944,0.442,1968.3,1967.2,0.46944044]
[1771341608147,1.26974452,1968.9,1967.2,0.46944044]
[1771341608345,3.275077,1968.7,1967.2,0.46944044]
[1771341608563,1.26993802,1968.6,1967.3,1.2707772]
[1771341608766,20.93557801,1968.4,1966.9,5.08398092]
[1771341608994,7.632895,1968.2,1966.9,5.08398092]
[1771341609197,1.26993802,1968.6,1967.0,0.46944044]
[1771341609395,3.730606,1968.4,1967.0,0.46944044]
[1771341609572,0.45858001,1968.2,1966.7,1.27116489]
[1771341609773,27.01704,1968.0,1966.6,1.27117949]
[1771341610102,14.590081,1967.8,1966.4,5.08538245]
[1771341610299,0.443,1967.7,1966.5,0.46944044]
[1771341610797,1.27058345,1967.6,1966.5,0.46944044]
[1771341610998,10.7914,1967.5,1966.2,1.27148814]
[1771341611299,1.36,1967.4,1966.2,1.27148814]
[1771341611469,0.444,1967.3,1966.2,1.27148814]
[1771341611670,0.444,1967.3,1966.1,5.55552805]
[1771341611671,0.444,1967.3,1966.1,1.27150529]
[1771341611871,0.916,1967.5,1966.1,1.27150529]
[1771341611872,0.444,1967.2,1966.1,1.27150529]
[1771341612167,1.27058345,1967.6,1966.1,1.74094573]
[1771341612367,0.444,1967.5,1966.2,0.46944044]
[1771341612782,1.27071261,1967.4,1966.3,1.27142348]
[1771341614377,15.32133405,1968.0,1966.4,0.49557703]
[1771341614745,1.71438975,1967.9,1966.8,1.27110026]
[1771341615016,1.27000254,1968.5,1967.0,0.49557703]
[1771341615172,0.916,1968.3,1967.0,0.49557703]
[1771341615378,2.12858,1968.2,1967.0,0.49557703]
[1771341615587,0.445,1968.1,1966.8,2.36667729]
[1771341616392,1.27000254,1968.5,1966.9,0.49557703]
[1771341616589,1.27000254,1968.5,1967.1,0.49557703]
[1771341616804,1.27013158,1968.3,1967.2,1.2708418]
[1771341617046,14.881224,1968.2,1966.7,0.49557703]
[1771341617336,14.548462,1968.2,1966.9,0.6]
[1771341617629,2.710323,1968.2,1966.9,1.09557703]
[1771341617937,1.27013158,1968.3,1967.0,0.49557703]
[1771341618095,0.446,1968.1,1967.0,0.49557703]
[1771341618405,0.446,1968.1,1966.9,0.6]
[1771341619100,0.446,1968.1,1966.8,5.08436584]
[1771341619301,1.2703252,1968.0,1966.9,5.08388408]
[1771341620028,1.2703252,1968.0,1966.8,1.27103563]
[1771341620029,1.2703252,1968.0,1966.8,1.27107364]
[1771341620200,5.194053,1967.9,1966.5,1.27129417]
[1771341620392,4.397053,1967.9,1966.9,0.001]
[1771341620723,1.2703252,1968.0,1966.9,0.001]
[1771341620724,1.362,1967.8,1966.9,0.001]
[1771341620923,1.2703252,1968.0,1966.9,0.001]
[1771341621109,1.363,1967.9,1966.9,0.001]
[1771341621426,0.447,1967.8,1966.9,0.001]
[1771341621926,1.27030165,1968.1,1966.9,0.001]
[1771341622127,17.281995,1968.0,1966.9,0.001]
[1771341622423,0.446,1968.0,1966.9,0.001]
[1771341622591,1.27030165,1968.1,1966.9,0.001]
[1771341622797,1.363,1968.0,1966.9,0.001]
[1771341623725,1.363,1968.0,1966.9,1.27203563]
[1771341623726,0.447,1967.9,1966.9,1.27203563]
[1771341624226,0.447,1967.9,1966.9,1.76761266]
[1771341624703,1.27030235,1968.1,1966.9,1.76761266]
[1771341624903,0.447,1968.0,1967.0,0.49557703]
[1771341625214,0.447,1968.0,1966.9,1.27203563]
[1771341625610,0.447,1968.0,1966.9,0.001]
[1771341625922,8.53889074,1967.8,1966.9,0.001]
[1771341626125,14.077199,1967.7,1966.9,0.001]
[1771341626431,14.077199,1967.7,1966.3,1.27142348]
[1771341626432,15.021916,1967.4,1966.3,1.27142348]
[1771341626627,6.47387,1967.4,1966.3,1.27142348]
[1771341626928,1.364,1967.6,1966.3,1.27142348]
[1771341626929,7.0733,1967.5,1966.3,1.27142348]
[1771341627296,26.931872,1967.4,1966.3,1.27142348]
[1771341627514,0.45,1967.3,1965.8,6.17851995]
[1771341627720,0.45,1967.3,1965.0,1.52663896]
[1771341627721,30.0,1967.0,1965.4,0.49557703]
[1771341627923,22.713421,1966.9,1965.5,5.08774966]
[1771341628223,10.700605,1966.8,1965.5,5.08774966]
[1771341628425,7.26843643,1967.0,1965.6,0.49557703]
[1771341628426,0.452,1966.7,1965.6,0.49557703]
[1771341628737,0.452,1966.7,1965.5,5.08774966]
[1771341628941,17.234659,1966.6,1965.4,1.27200569]
[1771341629225,3.499913,1966.6,1965.4,1.27200569]
[1771341629800,0.452,1966.5,1965.5,0.49557703]
[1771341630224,1.27115258,1966.8,1965.5,0.49557703]
[1771341630426,0.452,1966.6,1965.5,0.49557703]
[1771341630835,7.73129368,1967.3,1965.4,8.54044212]
[1771341630836,1.2708418,1967.3,1965.8,0.49557703]
[1771341631000,0.452,1967.2,1966.0,0.49557703]
[1771341632030,0.452,1967.2,1966.2,0.49557703]
[1771341632931,0.452,1967.2,1966.2,1.09357703]
[1771341633132,0.452,1967.2,1966.2,0.49557703]
[1771341633430,0.452,1967.2,1966.1,1.27155282]
[1771341633739,5.54556967,1967.5,1966.1,1.27155282]
[1771341633740,2.680151,1967.4,1966.1,1.27155282]
[1771341634036,2.6387772,1967.3,1966.1,1.76712985]
[1771341634625,2.6387772,1967.3,1966.1,1.27155282]
[1771341634827,2.6387772,1967.3,1965.5,2.36651801]
[1771341634828,22.735869,1967.0,1965.5,2.36651801]
[1771341635137,11.914875,1966.7,1966.1,0.001]
[1771341635299,7.26843643,1967.2,1965.5,1.87094098]
[1771341635300,0.1024,1967.1,1965.5,2.36651801]
[1771341635504,3.786409,1966.9,1966.0,0.001]
[1771341635922,1.27110026,1966.8,1966.0,0.001]
[1771341636134,2.887933,1966.7,1966.0,0.001]
[1771341636406,0.453,1966.6,1966.0,0.001]
[1771341636923,0.453,1966.5,1966.0,0.001]
[1771341637302,0.453,1966.4,1966.0,0.001]
[1771341637538,0.453,1966.4,1965.8,0.001]
[1771341638512,1.72435882,1966.4,1965.8,0.001]
[1771341639131,0.453,1966.4,1965.8,0.001]
[1771341639327,5.18623715,1967.2,1965.8,0.001]
[1771341639513,0.916,1966.8,1965.8,0.001]
[1771341639718,0.453,1966.7,1965.8,0.001]
[1771341639915,0.453,1966.6,1965.8,0.001]
[1771341640838,1.27129417,1966.5,1965.8,0.001]
[1771341642340,6.191954,1966.4,1965.8,0.001]
[1771341642635,1.72428006,1966.6,1965.8,0.001]
[1771341643004,0.454,1966.5,1965.8,0.001]
[1771341644638,0.453,1966.6,1965.8,0.001]
[1771341644935,6.05727,1967.1,1965.9,1.27168218]
[1771341645238,15.17432744,1966.9,1965.8,0.001]
[1771341645435,19.896426,1966.7,1965.8,0.001]
[1771341645636,0.454,1966.6,1965.8,0.001]
[1771341645934,0.454,1966.6,1965.8,1.27274287]
[1771341646344,0.454,1966.6,1965.8,0.001]
[1771341646549,16.376617,1966.5,1965.8,0.001]
[1771341646766,16.376617,1966.5,1964.9,0.591]
[1771341646767,0.47036444,1966.4,1964.9,0.591]
[1771341646925,19.43998787,1965.8,1964.9,0.001]
[1771341647216,17.031469,1965.5,1964.9,0.001]
[1771341647415,0.916,1965.5,1964.9,0.001]
[1771341647615,0.916,1965.5,1964.8,0.001]
[1771341648233,0.457,1965.4,1964.8,0.001]
[1771341648943,10.142696,1965.2,1964.8,0.001]
[1771341649267,8.59490904,1966.0,1964.8,0.001]
[1771341649469,3.498231,1965.7,1964.8,0.001]
[1771341649765,0.458,1965.8,1964.8,0.001]
[1771341650045,2.619872,1965.7,1965.6,0.001]
[1771341650223,2.619872,1965.7,1964.8,0.001]
[1771341650424,5.08675963,1965.9,1965.5,0.001]
[1771341650425,0.459,1965.6,1965.5,0.001]
[1771341650836,0.459,1965.6,1965.3,0.001]
[1771341651234,1.73087943,1965.6,1965.3,0.001]
[1771341651845,1.27187943,1965.6,1965.3,0.001]
[1771341652074,0.47036444,1966.2,1965.3,0.001]
[1771341652219,2.64855282,1966.1,1965.3,0.001]
[1771341652650,0.46,1966.0,1965.3,0.001]
[1771341653038,1.27168218,1965.9,1964.8,1.27334146]
[1771341653242,1.27168218,1965.9,1964.8,1.27339097]
[1771341653243,12.191192,1965.8,1964.8,1.27339097]
[1771341653552,12.191192,1965.8,1964.8,1.27339109]
[1771341653753,1.27168218,1965.9,1964.9,0.45600481]
[1771341654051,0.462,1965.8,1964.9,0.45600481]
[1771341654251,0.462,1965.7,1964.9,0.45600481]
[1771341654457,0.48955862,1966.8,1964.9,0.45600481]
[1771341654769,11.95040442,1966.6,1965.0,0.45600481]
[1771341654955,6.85286242,1966.2,1965.0,0.45600481]
[1771341655128,6.85286242,1966.2,1964.8,1.2733516]
[1771341655129,23.307465,1966.1,1964.8,1.2733516]
[1771341655319,13.183489,1965.9,1964.8,1.2733516]
[1771341655516,20.061134,1966.0,1964.8,1.2733516]
[1771341655722,14.771251,1966.0,1964.8,1.2733516]
[1771341655952,10.585611,1966.0,1964.8,1.2733516]
[1771341656160,10.585611,1966.0,1964.8,0.001]
[1771341656161,11.07516962,1966.0,1964.8,0.001]
[1771341656378,18.666714,1965.9,1964.8,0.001]
[1771341656665,19.657997,1965.7,1964.8,0.001]
[1771341656820,7.34242104,1965.8,1964.2,5.54698497]
[1771341656821,16.93313,1965.5,1964.2,0.45600481]
[1771341657025,19.391303,1965.3,1964.2,1.27273056]
[1771341657332,0.466,1965.2,1964.2,1.27273056]
[1771341657630,0.467,1965.1,1964.3,0.45600481]
[1771341657844,5.18963761,1965.9,1964.3,0.45600481]
[1771341657845,0.467,1965.2,1964.3,0.45600481]
[1771341658550,1.27161749,1966.0,1964.3,0.45600481]
[1771341658739,1.383,1965.9,1964.3,0.45600481]
[1771341658939,1.383,1965.9,1964.5,0.45600481]
[1771341658940,1.27181156,1965.7,1964.5,0.45600481]
[1771341659326,0.466,1965.6,1964.5,0.45600481]
[1771341660244,0.466,1965.6,1964.4,1.27265322]
[1771341660245,10.034419,1965.5,1964.4,1.27265322]
[1771341660438,10.034419,1965.5,1964.2,1.27278281]
[1771341660637,0.466,1965.6,1964.0,0.001]
[1771341660638,28.83342162,1965.3,1964.0,0.001]
[1771341660838,24.75504,1965.1,1964.0,0.001]
[1771341661056,1.27231722,1965.0,1964.0,0.45700481]
[1771341661241,0.48955862,1965.7,1964.0,0.45700481]
[1771341661434,7.22377411,1966.4,1964.0,0.45700481]
[1771341661435,0.467,1965.6,1964.2,0.45600481]
[1771341662028,3.603172,1966.0,1964.2,0.45600481]
[1771341662361,4.148051,1965.8,1964.2,0.45600481]
[1771341663144,5.618451,1965.7,1964.4,0.45600481]
[1771341663343,0.467,1965.6,1964.4,0.45600481]
[1771341663949,0.467,1965.5,1964.4,0.45600481]
[1771341665240,0.467,1965.5,1964.1,0.588]
[1771341665241,0.467,1965.5,1964.1,0.001]
[1771341665439,14.019832,1965.3,1964.1,0.001]
[1771341665744,1.382,1965.2,1964.1,0.001]
[1771341665938,16.146178,1965.1,1964.1,0.001]
[1771341666549,15.481699,1965.1,1964.1,0.001]
[1771341666774,8.23912,1965.0,1964.1,0.001]
[1771341666937,1.382,1965.2,1964.1,0.001]
[1771341667260,4.568056,1964.7,1963.8,0.001]
[1771341667464,0.467,1964.6,1963.8,0.001]
[1771341667686,0.28925624,1965.5,1963.8,0.45700481]
[1771341667895,8.683961,1965.5,1963.8,0.45700481]
[1771341668173,7.964008,1965.5,1963.8,0.45700481]
[1771341668344,0.1024,1965.5,1963.9,0.45600481]
[1771341668561,0.1035,1965.7,1963.9,0.45600481]
[1771341668562,1.384,1965.4,1963.9,0.45600481]
[1771341668763,3.000651,1965.3,1963.9,0.45600481]
[1771341668969,1.384,1965.4,1963.9,0.45600481]
[1771341669167,4.154651,1965.3,1963.9,0.45600481]
[1771341669364,2.707451,1965.3,1963.9,0.45600481]
[1771341670955,1.384,1965.4,1963.8,0.001]
[1771341670956,16.699634,1965.1,1963.8,0.001]
[1771341671587,2.163421,1964.9,1963.8,0.45700481]
[1771341671763,0.467,1964.8,1963.8,0.45700481]
[1771341672171,0.467,1964.9,1963.8,0.45700481]
[1771341672370,0.466,1965.0,1963.8,0.45700481]
[1771341672909,3.46422,1965.1,1963.8,0.45700481]
[1771341674986,3.46422,1965.1,1963.8,0.001]
[1771341674987,14.813699,1964.8,1963.8,0.001]
[1771341675155,1.383,1964.7,1963.8,0.001]
[1771341676391,0.467,1964.7,1963.8,0.49359176]
[1771341676577,2.392828,1965.3,1963.9,0.001]
[1771341676776,7.26818,1965.1,1964.0,0.49259176]
[1771341676986,5.76068,1965.1,1964.0,0.49259176]
[1771341677383,4.83365,1965.1,1963.9,0.001]
[1771341677784,0.466,1965.0,1963.9,0.49359176]
[1771341677970,5.93407,1964.9,1963.9,0.49359176]
[1771341678296,3.134135,1964.9,1963.9,0.49359176]
[1771341678511,1.383,1965.0,1963.9,0.49359176]
[1771341678814,4.052385,1964.9,1963.9,0.49359176]
[1771341679167,7.28932247,1964.6,1963.9,0.001]
[1771341679479,11.80345437,1964.9,1963.8,0.001]
[1771341679480,0.466,1964.5,1963.8,0.001]
[1771341680096,7.19434553,1964.9,1963.8,0.001]
[1771341680300,8.29116,1964.7,1963.8,0.001]
[1771341680996,3.165174,1964.7,1963.8,0.001]
[1771341681170,5.610163,1964.5,1963.8,0.001]
[1771341681680,2.981043,1964.5,1963.8,0.001]
[1771341681874,1.383,1964.6,1963.8,0.001]
[1771341682501,1.383,1964.6,1963.6,0.001]
[1771341682502,6.955705,1964.4,1963.6,0.001]
[1771341682798,10.306033,1964.5,1963.6,0.001]
[1771341683174,14.840154,1964.2,1963.6,0.001]
[1771341683374,0.467,1964.1,1963.6,0.001]
[1771341684471,0.467,1964.1,1963.2,0.001]
[1771341684821,0.467,1964.1,1963.0,0.001]
[1771341684822,6.73259863,1963.8,1963.0,0.001]
[1771341684992,6.73259863,1963.5,1962.8,0.001]
[1771341685192,6.73259863,1963.5,1962.6,0.001]
[1771341685193,18.760209,1963.3,1962.6,0.001]
[1771341685392,0.468,1963.2,1962.6,0.001]
[1771341685580,0.468,1963.5,1962.6,0.49359176]
[1771341686505,7.20059863,1963.5,1962.6,0.001]
[1771341687004,12.98887,1963.4,1962.6,0.001]
[1771341687192,8.731486,1963.4,1962.6,0.001]
[1771341687381,0.468,1963.4,1962.6,0.001]
[1771341687581,0.468,1963.4,1961.7,0.49259176]
[1771341687582,6.73259863,1963.1,1961.7,0.49259176]
[1771341687802,6.73259863,1962.8,1961.7,0.49259176]
[1771341687996,1.386,1962.7,1961.7,0.49259176]
[1771341688188,1.3824,1963.3,1961.7,0.49259176]
[1771341688189,0.468,1962.6,1961.7,0.49259176]
[1771341689072,0.468,1962.6,1961.4,0.49359176]
[1771341689596,17.243255,1962.5,1961.4,0.49359176]
[1771341689899,1.386,1962.4,1961.4,0.49359176]
[1771341690274,6.73259863,1962.8,1961.4,0.49359176]
[1771341690275,0.468,1962.3,1961.4,0.49359176]
[1771341690472,0.468,1962.3,1961.4,0.001]
[1771341690672,13.226994,1961.8,1961.0,0.001]
[1771341690877,1.386,1961.7,1961.0,0.001]
[1771341691104,19.00522863,1961.6,1961.0,0.001]
[1771341691305,0.469,1961.5,1961.0,0.001]
[1771341691675,3.988871,1961.4,1961.0,0.001]
[1771341691878,0.47,1961.3,1961.0,0.001]
[1771341692111,0.28925624,1962.2,1961.0,0.001]
[1771341692112,0.47,1961.5,1961.0,0.001]
[1771341692291,0.47,1961.6,1961.0,0.001]
[1771341692607,0.47,1961.7,1961.0,0.49359176]
[1771341693098,0.47,1961.7,1961.0,0.001]
[1771341693284,0.469,1961.7,1961.0,0.001]
[1771341693607,0.469,1961.7,1961.0,0.49359176]
[1771341693809,0.918,1961.9,1961.0,0.49359176]
[1771341693810,0.469,1961.9,1961.0,0.49359176]
[1771341694214,11.923178,1962.1,1961.0,0.49359176]
[1771341694414,16.53272163,1961.9,1961.0,0.001]
[1771341694626,18.516142,1961.8,1961.0,0.001]
[1771341694792,1.387,1961.7,1961.0,0.001]
[1771341695108,0.47,1961.6,1961.0,0.001]
[1771341695495,0.1024,1962.1,1961.0,0.49359176]
[1771341695808,0.47,1962.1,1961.0,0.49359176]
[1771341696391,0.47,1962.0,1961.0,0.49359176]
[1771341697283,6.83499863,1962.5,1961.0,0.49359176]
[1771341697494,0.47,1962.0,1961.0,0.49359176]
[1771341697695,2.499606,1962.4,1961.0,0.49359176]
[1771341697986,2.05165,1962.3,1961.0,0.49359176]
[1771341698716,0.469,1962.4,1961.3,0.49259176]
[1771341698914,4.98377,1963.0,1961.3,0.49259176]
[1771341699121,0.469,1962.8,1961.7,0.49259176]
[1771341699416,5.816015,1963.6,1962.0,0.49259176]
[1771341699712,6.73259863,1964.0,1962.3,0.49259176]
[1771341700019,1.387,1963.9,1962.3,0.49259176]
[1771341700202,3.316178,1963.8,1962.3,0.49259176]
[1771341700513,6.507417,1963.6,1962.3,0.49259176]
[1771341700703,0.468,1963.5,1962.3,0.49259176]
[1771341703215,0.0011,1962.7,1962.3,0.49259176]
[1771341703515,0.0011,1962.7,1962.0,0.49259176]
[1771341703716,6.73259863,1963.8,1962.0,0.49259176]
[1771341704013,1.386,1963.7,1962.3,0.49259176]
[1771341704219,8.382268,1963.6,1962.3,0.49259176]
[1771341704400,3.686554,1963.6,1962.3,0.49259176]
[1771341704595,1.386,1963.7,1961.8,0.918]
[1771341704596,0.0011,1963.0,1962.5,0.4848315]
[1771341705916,6.73259863,1964.0,1962.5,0.4848315]
[1771341706215,3.665821,1963.8,1962.5,0.4848315]
[1771341706381,1.385,1963.8,1962.5,0.4848315]
[1771341706800,6.62361,1963.7,1962.5,0.4848315]
[1771341707292,1.384,1963.7,1962.5,0.4848315]
[1771341707681,0.1024,1964.2,1962.5,0.4848315]
[1771341707910,3.319216,1964.0,1962.8,0.4848315]
[1771341708487,1.384,1964.1,1962.8,0.4848315]
[1771341708698,2.1722,1964.0,1963.1,0.4848315]
[1771341709000,3.18461,1964.0,1963.1,0.4848315]
[1771341709202,0.0011,1964.4,1963.1,0.4848315]
[1771341709585,2.799504,1964.3,1963.1,0.4848315]
[1771341710208,0.0011,1964.4,1963.1,0.4848315]
[1771341710403,2.824772,1964.3,1963.1,0.4848315]
[1771341710795,9.55737063,1964.3,1963.1,0.4848315]
[1771341711001,9.55737063,1964.3,1962.5,0.918]
[1771341711002,15.04501,1964.2,1962.6,0.4848315]
[1771341711197,13.542866,1964.2,1962.6,0.4848315]
[1771341711398,23.072077,1963.9,1962.6,0.4848315]
[1771341711700,6.424469,1963.7,1962.6,0.4848315]
[1771341711904,4.041825,1963.8,1962.6,0.4848315]
[1771341712299,6.984235,1963.8,1962.6,0.4848315]
[1771341712496,4.075325,1963.8,1962.6,0.4848315]
[1771341712885,15.451118,1963.5,1962.2,0.46059293]
[1771341713687,4.060575,1963.5,1962.2,0.46059293]
[1771341714031,0.0011,1964.4,1962.5,0.46059293]
[1771341714032,0.467,1963.6,1962.5,0.46059293]
[1771341716899,6.602229,1963.8,1962.5,0.46059293]
[1771341717124,1.384,1963.7,1962.5,0.46059293]
[1771341717720,4.403364,1963.5,1962.5,0.46059293]
[1771341717921,0.467,1963.5,1962.5,0.46059293]
[1771341718221,7.22953107,1963.9,1962.3,0.46159293]
[1771341718528,6.842478,1963.7,1962.3,0.46159293]
[1771341719024,6.842478,1963.7,1962.3,0.001]
[1771341719025,7.22953107,1963.6,1962.3,0.001]
[1771341719196,4.309154,1963.5,1962.3,0.001]
[1771341719395,8.523591,1963.7,1962.3,0.46159293]
[1771341719601,9.02052344,1963.7,1962.3,0.46159293]
[1771341719849,16.54937044,1963.5,1962.3,0.001]
[1771341720017,12.8292,1963.4,1962.3,0.001]
[1771341720326,8.00992,1963.2,1962.3,0.001]
[1771341720529,6.73259863,1963.1,1962.3,0.001]
[1771341720733,11.001673,1963.0,1962.3,0.001]
[1771341720896,8.968201,1963.0,1962.3,0.001]
[1771341721119,8.968201,1963.0,1962.2,0.001]
[1771341721319,6.83217,1962.7,1962.0,0.001]
[1771341721520,6.73259863,1962.5,1961.1,1.01159293]
[1771341721720,6.73259863,1962.5,1961.1,0.46159293]
[1771341721954,21.677356,1962.4,1961.1,0.001]
[1771341722119,19.262642,1962.4,1961.1,0.001]
[1771341722325,19.245634,1962.1,1961.1,0.001]
[1771341722524,0.469,1962.0,1961.1,0.001]
[1771341722720,10.43282,1961.8,1961.1,0.001]
[1771341722959,9.226022,1961.8,1961.1,0.001]
[1771341723157,4.649943,1961.7,1961.1,0.001]
[1771341723327,0.471,1961.6,1961.1,0.001]
[1771341724167,0.471,1961.6,1961.0,0.001]
[1771341724674,18.960045,1961.5,1961.0,0.001]
[1771341724953,0.471,1961.4,1961.0,0.001]
[1771341725434,0.471,1961.5,1961.0,0.001]
[1771341725944,0.471,1961.6,1961.0,0.001]
[1771341726347,7.33193107,1962.3,1961.0,0.001]
[1771341726532,0.471,1962.2,1961.1,0.46059293]
[1771341726733,2.112911,1962.1,1961.1,0.46059293]
[1771341726954,0.49693244,1962.7,1961.1,0.46059293]
[1771341727252,0.1024,1962.8,1961.3,0.46059293]
[1771341727548,4.454727,1962.6,1961.3,0.46059293]
[1771341727749,0.49693244,1963.1,1961.3,0.46059293]
[1771341727941,0.471,1962.5,1961.3,0.46059293]
[1771341728429,0.47,1962.8,1961.6,0.46059293]
[1771341728634,5.649393,1962.7,1961.6,0.46059293]
[1771341728842,0.47,1962.6,1961.6,0.46059293]
[1771341729351,0.47,1962.8,1961.6,0.46059293]
[1771341730049,0.918,1963.0,1961.6,0.46059293]
[1771341730050,0.47,1962.9,1961.6,0.46059293]
[1771341730253,6.73259863,1963.4,1961.6,0.46059293]
[1771341730428,7.204804,1963.2,1961.9,0.46059293]
[1771341731253,3.132327,1963.0,1961.9,0.46059293]
[1771341731453,0.47,1962.9,1961.9,0.46059293]
[1771341731653,6.73259863,1963.4,1961.9,0.46059293]
[1771341731831,1.01071322,1964.3,1962.1,0.46059293]
[1771341731832,7.22953107,1964.0,1962.1,0.46059293]
[1771341732029,7.22953107,1964.0,1962.0,6.73259863]
[1771341732030,0.918,1963.6,1962.4,0.46059293]
[1771341732456,2.5882,1963.5,1962.4,0.46059293]
[1771341732632,0.918,1963.6,1961.9,0.918]
[1771341732633,0.0011,1964.2,1962.6,0.46059293]
[1771341732831,4.212102,1964.1,1962.6,0.46059293]
[1771341733040,0.0011,1964.2,1962.6,0.46059293]
[1771341733041,2.609523,1964.0,1962.6,0.46059293]
[1771341733244,5.832791,1963.8,1962.6,0.46059293]
[1771341733554,2.542791,1963.8,1962.6,0.46059293]
[1771341733729,0.469,1963.9,1962.6,0.46059293]
[1771341733927,0.0011,1964.2,1962.6,0.46059293]
[1771341733928,0.469,1964.1,1962.9,0.46059293]
[1771341734138,0.469,1964.1,1963.1,0.46059293]
[1771341734338,0.0011,1964.2,1963.2,0.48938113]
[1771341735941,0.0011,1964.2,1963.4,0.48938113]
[1771341736364,0.0011,1964.4,1964.0,0.48938113]
[1771341736664,1.2721351,1965.3,1964.3,0.48938113]
[1771341737057,1.74110729,1965.4,1964.3,0.48938113]
[1771341737651,1.74110729,1965.4,1964.0,0.918]
[1771341737872,1.74110729,1965.4,1964.0,2.68028956]
[1771341738368,21.39403563,1965.3,1963.7,1.76248575]
[1771341738578,4.303515,1965.0,1963.7,1.76248575]